lending/lending_fUSD_20240124
["ID","MTS","AMOUNT","RATE_DAILY","PERIOD"]
[312630372,1706121043975,-471.72,0.00027137,2]
[312630373,1706121043984,-800.0,0.00027178,2]
[312630374,1706121043994,-1000.0,0.00027186,2]
[312630375,1706121044005,-3919.1858435,0.00027264,2]
[312630376,1706121044015,-200.0,0.00027397,5]
[312630377,1706121044024,-174.0624444,0.00027397,2]
[312630378,1706121044034,-836.82,0.00027397,2]
[312630379,1706121044043,-5304.47,0.00027397,2]
[312630380,1706121044052,-156.93,0.000274,2]
[312630381,1706121044062,-156.93,0.000274,2]
[312630382,1706121044071,-156.93,0.000274,2]
[312630383,1706121044080,-156.93,0.000274,2]
[312630384,1706121044091,-532.9767982,0.00027471,3]
[312630385,1706121044100,-5304.47,0.00027556,2]
[312630386,1706121044109,-836.82,0.00027686,2]
[312630387,1706121044119,-167.0,0.00027695,2]
[312630388,1706121044128,-5304.47,0.00027714,2]
[312630389,1706121044138,-152.41515383,0.00027841,2]
[312630390,1706121044149,-5304.47,0.00027872,2]
[312630391,1706121044158,-200.0,0.00027945,5]
[312630392,1706121044167,-836.82,0.00027974,2]
[312630393,1706121044177,-471.72,0.00027978,2]
[312630394,1706121044187,-5304.47,0.0002803,2]
[312630395,1706121044197,-5304.47,0.00028189,2]
[312630396,1706121044206,-730.33,0.00028249,2]
[312630397,1706121044215,-836.82,0.00028262,2]
[312630398,1706121044225,-5304.47,0.00028347,2]
[312630399,1706121044234,-200.0,0.00028493,5]
[312630400,1706121044243,-5304.47,0.00028505,2]
[312630401,1706121044252,-836.82,0.00028551,2]
[312630402,1706121044263,-200.0,0.00028622,5]
[312630403,1706121044273,-50000.0,0.00028656,7]
[312630404,1706121044282,-5304.47,0.00028664,2]
[312630405,1706121044291,-3919.1858435,0.00028718,2]
[312630406,1706121044300,-471.72,0.00028819,2]
[312630407,1706121044309,-5304.47,0.00028822,2]
[312630408,1706121044318,-836.82,0.00028839,2]
[312630409,1706121044327,-418.92,0.0002885,2]
[312630410,1706121044336,-550.0,0.00029,3]
[312630411,1706121044347,-200.0,0.00029041,5]
[312630412,1706121044356,-836.82,0.00029128,2]
[312630413,1706121044365,-836.82,0.00029416,2]
[312630414,1706121044374,-152.41515383,0.00029488,2]
[312630415,1706121044384,-155.47856455,0.000295,3]
[312630416,1706121044393,-200.0,0.00029589,5]
[312630417,1706121044403,-836.82,0.00029704,2]
[312630418,1706121044412,-532.9767982,0.00029757,4]
[312630419,1706121044421,-730.33,0.00029893,2]
[312630420,1706121044431,-1000.0,0.00029904,2]
[312630421,1706121044441,-836.82,0.00029993,2]
[312630422,1706121044450,-1410.16137024,0.00029997,2]
[312630423,1706121044460,-150.0,0.00029999,2]
[312630424,1706121044470,-150.0,0.00029999,2]
[312630425,1706121044479,-705.43051941,0.0003,2]
[312630426,1706121044488,-110684.93362919,0.0003,4]
[312630427,1706121044498,-155.0,0.0003,2]
[312630428,1706121044509,-19077.24408093,0.0003,4]
[312630429,1706121044519,-447.33495991,0.0003,4]
[312630430,1706121044528,-171.23116774,0.0003,4]
[312630431,1706121044538,-460.7244378,0.0003,4]
[312630432,1706121044547,-155.24386444,0.0003,4]
[312630433,1706121044556,-907.93542194,0.0003,4]
[312630434,1706121044565,-34841.12760353,0.0003,4]
[312630442,1706121046293,-2237.28633949,0.00022999,2]
[312630443,1706121046302,-37435.7136605,0.0003,4]
[312630444,1706121046330,-855.46903989,0.0003,4]
[312630445,1706121046339,-683.37304175,0.0003,4]
[312630446,1706121046348,-465.61785746,0.0003,4]
[312630447,1706121046358,-209.97257261,0.0003,4]
[312630448,1706121046368,-155.19490441,0.0003,4]
[312630449,1706121046377,-124.04177321,0.0003,4]
[312630450,1706121046389,-735.9234,0.0003,4]
[312630451,1706121046401,-1660.0,0.0003,4]
[312630452,1706121046413,-503.5,0.0003,4]
[312630453,1706121046425,-842.0,0.0003,4]
[312630454,1706121046438,-495.86931459,0.0003,4]
[312630460,1706121046902,-113764.57765584,0.0003,4]
[312630461,1706121046914,-628.65728134,0.0003,4]
[312630462,1706121046925,-1118.36812524,0.0003,4]
[312630463,1706121046936,-950.0,0.0003,4]
[312630464,1706121046954,-171.63288693,0.00022999,2]
[312630465,1706121046963,-2904.57316507,0.0003,4]
[312630466,1706121046974,-1136.31970679,0.0003,4]
[312630467,1706121046985,-5208.30582001,0.0003,4]
[312630468,1706121047008,-3090.32308473,0.0003,4]
[312630469,1706121047020,-5617.7333,0.0003,4]
[312630470,1706121047032,-365.67476541,0.0003,4]
[312630471,1706121047056,-170153.826297,0.0003,4]
[312630472,1706121047065,-583.29368938,0.0003,2]
[312630473,1706121047075,-5624.98287635,0.0003,2]
[312630474,1706121047084,-816.43107714,0.0003,4]
[312630475,1706121047093,-358.00273995,0.0003,2]
[312630476,1706121047102,-155.25986779,0.0003,4]
[312630477,1706121047111,-83518.13021538,0.0003,4]
[312630478,1706121047123,-4669.49965607,0.0003,4]
[312630479,1706121073190,16729.99776162,0.00019696,2]
[312630480,1706121144443,155.0,0.00019696,2]
[312630481,1706121162445,156.01609828,0.00019696,2]
[312630482,1706121165463,300.0,0.00021561,2]
[312630483,1706121177123,-458.32811282,0.0002176,2]
[312630484,1706121177144,-250.0,0.00021761,2]
[312630485,1706121181468,171.63288693,0.00021759,2]
[312630486,1706121187725,610.71165005,0.00021561,2]
[312630487,1706121203732,509.3273502,0.00021561,2]
[312630488,1706121203754,101.38429985,0.00021561,2]
[312630489,1706121219728,418.2392695,0.00021561,2]
[312630490,1706121227826,1228.53056958,0.00020518,2]
[312630491,1706121281874,251.84586107,0.00020518,2]
[312630492,1706121281897,976.68470851,0.00020518,2]
[312630493,1706121284948,1023.31529149,0.00021561,2]
[312630494,1706121284970,2000.0,0.00021561,2]
[312630495,1706121284990,2000.0,0.00021561,2]
[312630496,1706121285010,1068.35658286,0.00021561,2]
[312630497,1706121295834,447.43375185,0.00020518,2]
[312630498,1706121302971,484.20966529,0.00020518,2]
[312630499,1706121302997,2000.0,0.00020518,2]
[312630500,1706121303018,2000.0,0.00020518,2]
[312630501,1706121303040,655.52819018,0.00020518,2]
[312630502,1706121362534,856.6984896,0.00020518,2]
[312630503,1706121373262,235.48067339,0.00020518,2]
[312630504,1706121375054,163.94,0.00021761,2]
[312630505,1706121380480,88.35264683,0.00020518,2]
[312630506,1706121380501,269.53522293,0.00020518,2]
[312630507,1706121441665,312.8751174,0.00020518,2]
[312630508,1706121443279,306.12884348,0.00020518,2]
[312630509,1706121451841,155.0,0.00020518,2]
[312630510,1706121461257,235.06304054,0.00020518,2]
[312630511,1706121469920,155.0,0.00020518,2]
[312630512,1706121481190,566.39777565,0.00020518,2]
[312630513,1706121481212,532.66583992,0.00020518,2]
[312630514,1706121481443,328.97,0.00021761,2]
[312630515,1706121485628,234.61262024,0.00020518,2]
[312630516,1706121489837,155.0,0.00020518,2]
[312630517,1706121495189,748.75153984,0.00020518,2]
[312630518,1706121495212,347.25392302,0.00020518,2]
[312630519,1706121502406,234.5550209,0.00020518,2]
[312630520,1706121513836,220.09282609,0.00020518,2]
[312630521,1706121515670,151.32,0.00026085,120]
[312630522,1706121587061,1198.09822999,0.00021761,2]
[312630523,1706121587082,1700.94177001,0.00021761,2]
[312630524,1706121596214,155.0,0.00021761,2]
[312630525,1706121678549,-458.32811282,0.00021906,2]
[312630526,1706121678573,-171.63288693,0.00021907,2]
[312630527,1706121678596,-265.0,0.00021908,2]
[312630528,1706121678618,-2506.19817192,0.00021916,2]
[312630529,1706121678640,-300.0,0.00021917,2]
[312630530,1706121678662,-150.0,0.00021917,2]
[312630531,1706121678685,-4537.35,0.00021918,2]
[312630532,1706121681578,646.47,0.00021935,2]
[312630533,1706121710661,232.43,0.00021761,2]
[312630534,1706121712744,622.62568775,0.00021886,2]
[312630535,1706121750671,417.79251044,0.00021886,2]
[312630536,1706121750749,623.55097769,0.00021886,2]
[312630537,1706121755239,1098.64522824,0.00021886,2]
[312630543,1706121834938,167.87,0.00021761,2]
[312630544,1706121838391,-171.63288693,0.00022461,2]
[312630545,1706121838413,-828.36711307,0.00022461,2]
[312630548,1706121856091,175.32,0.00016712,2]
[312630550,1706121877462,426.37,0.00021268,2]
[312630552,1706121950388,-840.72075988,0.00042,120]
[312630553,1706121950410,-59.27924012,0.00042,120]
[312630554,1706121953592,-500.0,0.00022458,2]
[312630555,1706121991666,-2506.19817192,0.00022457,2]
[312630556,1706121991686,-2630.06569864,0.00022458,2]
[312630557,1706121991709,-280.06101534,0.00022464,2]
[312630558,1706121991730,-1900.2453,0.00022466,2]
[312630559,1706121991751,-152.26973691,0.00022497,2]
[312630560,1706121991771,-692.19851741,0.000225,2]
[312630561,1706121991792,-150.0,0.00022565,2]
[312630562,1706121991812,-2899.04,0.00022566,2]
[312630563,1706121991832,-281.17948363,0.0002257,2]
[312630564,1706121991852,-177.7582,0.00022597,2]
[312630565,1706121991873,-1000.0,0.00022699,2]
[312630566,1706121991893,-2279.1156,0.000227,2]
[312630567,1706121991913,-601.6353,0.000227,2]
[312630568,1706122015701,-200.0,0.00022455,2]
[312630569,1706122026199,-200.0,0.00022455,2]
[312630570,1706122031123,-200.0,0.00022455,2]
[312630571,1706122037707,-183.89,0.00021924,2]
[312630572,1706122037729,-16.11,0.00021985,2]
[312630573,1706122041907,-167.78,0.00021985,2]
[312630574,1706122042004,-32.22,0.00022045,2]
[312630575,1706122043249,144.05822999,0.00021761,2]
[312630576,1706122043271,1595.36177001,0.00021761,2]
[312630577,1706122045508,-200.0,0.00021896,2]
[312630578,1706122049362,-200.0,0.00021885,2]
[312630579,1706122053414,-200.0,0.00021885,2]
[312630580,1706122061253,-129.92952616,0.00021885,2]
[312630581,1706122061275,-70.07047384,0.00021895,2]
[312630582,1706122064893,-200.0,0.00021895,2]
[312630583,1706122068690,-200.0,0.00021895,2]
[312630584,1706122072095,-200.0,0.00021895,2]
[312630585,1706122079052,-500.0,0.00021895,2]
[312630586,1706122082560,-500.0,0.00021895,2]
[312630587,1706122086126,-500.0,0.00021895,2]
[312630588,1706122089653,-500.0,0.00021895,2]
[312630589,1706122096365,-459.9952248,0.00021895,2]
[312630590,1706122096388,-540.0047752,0.00021895,2]
[312630591,1706122105804,200.0,0.00021748,2]
[312630592,1706122112224,-500.0,0.00021895,2]
[312630593,1706122115655,204.63822999,0.00021658,2]
[312630594,1706122115676,1500.75193865,0.00021658,2]
[312630595,1706122120802,-200.0,0.00021895,2]
[312630596,1706122124937,177.46,0.00021748,10]
[312630597,1706122150243,177.01,0.00017459,2]
[312630598,1706122221290,-1000.0,0.00042,90]
[312630599,1706122221315,-97.76075988,0.00042,120]
[312630600,1706122221338,-840.72075988,0.00042,120]
[312630601,1706122221365,-1000.0,0.00043,120]
[312630602,1706122221389,-202.0,0.000431,33]
[312630603,1706122221414,-202.0,0.000436,33]
[312630604,1706122221439,-200.0,0.00043987,33]
[312630605,1706122221461,-1000.0,0.00044,120]
[312630606,1706122221487,-500.0,0.00044,38]
[312630607,1706122221511,-150.0,0.00044069,120]
[312630608,1706122221534,-202.0,0.000441,34]
[312630609,1706122221559,-239.0,0.000446,34]
[312630610,1706122221585,-200.0,0.00044987,34]
[312630611,1706122221609,-100000.0,0.00045,35]
[312630612,1706122221631,-1000.0,0.00045,120]
[312630613,1706122221657,-200.0,0.00045987,35]
[312630614,1706122221681,-100000.0,0.00046,36]
[312630615,1706122221707,-546.0,0.00046,120]
[312630616,1706122221730,-1000.0,0.00046,120]
[312630617,1706122221755,-206.3246805,0.00046,47]
[312630618,1706122221781,-187.5,0.00046575,120]
[312630619,1706122221805,-150.0,0.00046575,120]
[312630620,1706122221831,-200.0,0.00046987,36]
[312630621,1706122221856,-100000.0,0.00047,37]
[312630622,1706122221880,-600.0,0.00047,48]
[312630623,1706122221906,-150.0,0.0004737,120]
[312630624,1706122221930,-2500.0,0.0004747,35]
[312630625,1706122221955,-152.41515383,0.00047822,36]
[312630626,1706122221979,-2500.0,0.0004797,40]
[312630627,1706122222002,-200.0,0.00047987,37]
[312630628,1706122222028,-100000.0,0.00048,38]
[312630629,1706122222051,-245.0,0.00048,120]
[312630630,1706122222077,-600.0,0.00048,49]
[312630631,1706122222101,-150.0,0.00048137,120]
[312630632,1706122222125,-2500.0,0.0004827,45]
[312630633,1706122222149,-2500.0,0.0004847,60]
[312630634,1706122222172,-365.62619933,0.000485,120]
[312630635,1706122222196,-205.0,0.00048533,36]
[312630636,1706122222220,-4353.02937,0.00048767,120]
[312630637,1706122222246,-4601.75805238,0.00048889,120]
[312630638,1706122222269,-150.0,0.00048932,120]
[312630639,1706122222293,-2500.0,0.0004897,70]
[312630640,1706122222315,-200.0,0.00048987,38]
[312630641,1706122222339,-100000.0,0.00049,39]
[312630642,1706122222362,-1000.0,0.00049,120]
[312630643,1706122222385,-1587.32403862,0.00049,110]
[312630644,1706122222409,-600.0,0.00049,50]
[312630645,1706122222437,-432.12250171,0.000492,120]
[312630646,1706122222462,-2500.0,0.0004927,80]
[312630647,1706122222501,-330.73228108,0.00049315,120]
[312630648,1706122222541,-500.0,0.00049315,60]
[312630649,1706122222577,-2136.54283036,0.00049315,66]
[312630650,1706122222603,-1105.3,0.00049315,120]
[312630651,1706122222635,-500.0,0.00049315,120]
[312630652,1706122222698,-375.0,0.00049315,120]
[312630653,1706122222737,-200.0,0.00049315,60]
[312630654,1706122222761,-190.49129517,0.00049455,65]
[312630655,1706122222804,-500.0,0.00049589,60]
[312630656,1706122222838,-1105.3,0.00049589,120]
[312630657,1706122222865,-500.0,0.00049589,120]
[312630658,1706122222918,-638.07,0.00049589,120]
[312630659,1706122222957,-152.41515383,0.00049614,43]
[312630660,1706122222980,-500.0,0.0004963,90]
[312630661,1706122223005,-150.0,0.00049699,120]
[312630662,1706122223029,-10102.6,0.000497,35]
[312630663,1706122223053,-1000.0,0.000498,60]
[312630664,1706122223076,-1000.0,0.000498,120]
[312630665,1706122223102,-1000.0,0.000498,120]
[312630666,1706122223141,-500.0,0.00049863,60]
[312630667,1706122223173,-1105.3,0.00049863,120]
[312630668,1706122223200,-500.0,0.00049863,120]
[312630669,1706122223261,-638.07,0.0004989,120]
[312630670,1706122223285,-343656.6334055,0.000499,120]
[312630671,1706122223309,-159.537761,0.000499,120]
[312630672,1706122223332,-2577.64223759,0.0004998,120]
[312630673,1706122223354,-407.58134561,0.00049986,120]
[312630674,1706122223377,-200.0,0.00049987,60]
[312630675,1706122223400,-200.0,0.00049987,69]
[312630676,1706122223425,-100000.0,0.0005,40]
[312630677,1706122223449,-2500.0,0.0005,60]
[312630678,1706122223474,-123985.879211,0.0005,120]
[312630679,1706122223498,-1113.16,0.0005,120]
[312630680,1706122223526,-1032.0,0.0005,120]
[312630681,1706122223552,-5164.26096964,0.0005,50]
[312630682,1706122223577,-600.0,0.0005,51]
[312630683,1706122223599,-1502.09465771,0.0005,90]
[312630684,1706122223623,-60226.82053188,0.0005,120]
[312630685,1706122223646,-1878.24779766,0.0005,120]
[312630686,1706122223887,-500.0,0.0005,120]
[312630687,1706122223911,-3000.0,0.0005,89]
[312630688,1706122223935,-300000.0,0.0005,120]
[312630689,1706122223956,-5000.0,0.0005,120]
[312630690,1706122223978,-3000.0,0.0005,45]
[312630691,1706122224001,-797000.0,0.0005,120]
[312630692,1706122224023,-4000.0,0.0005,120]
[312630693,1706122224045,-4000.0,0.0005,120]
[312630694,1706122224067,-4000.0,0.0005,120]
[312630695,1706122224088,-4000.0,0.0005,120]
[312630696,1706122224111,-4000.0,0.0005,120]
[312630697,1706122224133,-4000.0,0.0005,120]
[312630698,1706122224155,-4000.0,0.0005,120]
[312630699,1706122224177,-4000.0,0.0005,120]
[312630700,1706122224199,-4000.0,0.0005,120]
[312630701,1706122224222,-4000.0,0.0005,120]
[312630702,1706122224249,-4000.0,0.0005,120]
[312630703,1706122224270,-4000.0,0.0005,120]
[312630704,1706122224294,-4000.0,0.0005,120]
[312630705,1706122224317,-969.16,0.0005,60]
[312630706,1706122224340,-2000.0,0.0005,120]
[312630707,1706122224364,-500000.0,0.0005,120]
[312630708,1706122224388,-126681.57900584,0.0005,120]
[312630709,1706122228400,144.77806135,0.000217,2]
[312630710,1706122228834,-63318.42099416,0.0005,120]
[312630711,1706122228857,-296313.25469708,0.0005,120]
[312630712,1706122228881,-5104.18383259,0.0005,120]
[312630713,1706122228903,-2380.1228001,0.0005,120]
[312630714,1706122228929,-120755.0042,0.0005,60]
[312630715,1706122228953,-1150.45373963,0.0005,60]
[312630716,1706122228978,-10000.0,0.0005,60]
[312630717,1706122229001,-10000.0,0.0005,60]
[312630718,1706122229024,-10000.0,0.0005,60]
[312630719,1706122229048,-19249.70547265,0.0005,60]
[312630720,1706122229072,-5094.00637756,0.0005,60]
[312630721,1706122229094,-2000.0,0.0005,60]
[312630722,1706122229117,-2000.0,0.0005,60]
[312630723,1706122229140,-2500.0,0.000501,90]
[312630724,1706122229164,-2000.0,0.00050106,90]
[312630725,1706122229186,-2016.14248542,0.00050106,120]
[312630726,1706122229222,-500.0,0.00050136,60]
[312630727,1706122229254,-1105.3,0.00050136,120]
[312630728,1706122229281,-500.0,0.00050136,120]
[312630729,1706122229337,-500.0,0.00050178,90]
[312630730,1706122229360,-638.07,0.00050191,120]
[312630731,1706122229383,-269.63746183,0.000502,120]
[312630732,1706122229416,-500.0,0.0005041,60]
[312630733,1706122229445,-1105.3,0.0005041,120]
[312630734,1706122229469,-500.0,0.0005041,120]
[312630735,1706122229522,-638.07,0.00050493,120]
[312630736,1706122229545,-150.0,0.00050493,120]
[312630737,1706122229570,-500000.0,0.000505,120]
[312630738,1706122229592,-10000.0021744,0.000505,120]
[312630739,1706122229616,-156.43151779,0.00050509,60]
[312630740,1706122229642,-153.78758588,0.00050539,60]
[312630741,1706122229665,-5000.0,0.000506,120]
[312630742,1706122229688,-174.84205514,0.00050625,60]
[312630743,1706122229711,-153.95702124,0.00050644,60]
[312630744,1706122229733,-162.27493029,0.0005065,60]
[312630745,1706122229756,-153.87365434,0.00050682,60]
[312630746,1706122229787,-500.0,0.00050684,60]
[312630747,1706122230065,-1105.3,0.00050684,120]
[312630748,1706122230091,-500.0,0.00050684,120]
[312630749,1706122230148,-584.90819405,0.00050686,60]
[312630750,1706122230172,-432.40353136,0.00050691,60]
[312630751,1706122230195,-168.71792367,0.00050707,60]
[312630752,1706122230219,-584.90819405,0.00050713,60]
[312630753,1706122230244,-452.49609033,0.00050714,60]
[312630754,1706122230270,-162.64199962,0.00050724,60]
[312630755,1706122230292,-500.0,0.00050726,90]
[312630756,1706122230314,-168.71792368,0.00050738,60]
[312630757,1706122230338,-150.37716717,0.00050745,60]
[312630758,1706122230361,-3413.0,0.00050746,40]
[312630759,1706122230383,-500.0,0.0005075,120]
[312630760,1706122230408,-638.07,0.00050794,120]
[312630761,1706122230432,-432.40353136,0.00050795,60]
[312630762,1706122230455,-5089.24779234,0.000508,120]
[312630763,1706122230478,-4353.02937,0.000508,120]
[312630764,1706122230501,-432.40353136,0.000508,60]
[312630765,1706122230525,-452.49609033,0.00050815,60]
[312630766,1706122230549,-162.64199962,0.00050847,60]
[312630767,1706122230571,-167.60687398,0.00050869,60]
[312630768,1706122230594,-1974.058724,0.000509,33]
[312630769,1706122230618,-5750.533718,0.000509,61]
[312630770,1706122230645,-306.179395,0.000509,33]
[312630771,1706122230667,-156.42670912,0.00050909,60]
[312630772,1706122230698,-500.0,0.00050958,60]
[312630773,1706122230726,-1105.3,0.00050958,120]
[312630774,1706122230754,-500.0,0.00050958,120]
[312630775,1706122230804,-154.44443256,0.00050962,60]
[312630776,1706122230828,-153.22894188,0.00050962,60]
[312630777,1706122230852,-200.0,0.00050987,64]
[312630778,1706122230878,-200.0,0.00050987,72]
[312630779,1706122230901,-200.0,0.00050987,50]
[312630780,1706122230924,-200.0,0.00050987,51]
[312630781,1706122230947,-1000.0,0.00050999,120]
[312630782,1706122230971,-100000.0,0.00051,41]
[312630783,1706122230996,-1000000.0,0.00051,120]
[312630784,1706122231018,-3000.0,0.00051,45]
[312630785,1706122231041,-427.25224929,0.00051,120]
[312630786,1706122231065,-2010.99,0.00051,120]
[312630787,1706122231089,-784967.37461713,0.00051,120]
[312630807,1706122232732,-5.22193865,0.000217,2]
[312630809,1706122232741,-3194.07254394,0.00021795,2]
[312630811,1706122232752,-1854.44632956,0.00021796,2]
[312630813,1706122232761,-285.99,0.00021823,2]
[312630815,1706122232770,-600.0,0.00021896,2]
[312630817,1706122232779,-250.0,0.00021896,2]
[312630818,1706122232788,-250.0,0.00021918,2]
[312630819,1706122232797,-151.67,0.00022045,2]
[312630820,1706122232805,-183.89,0.00022105,2]
[312630821,1706122232814,-183.89,0.00022165,2]
[312630822,1706122232823,-183.89,0.00022225,2]
[312630823,1706122232832,-183.89,0.00022285,2]
[312630824,1706122232841,-183.89,0.00022345,2]
[312630825,1706122232850,-183.89,0.00022406,2]
[312630826,1706122232858,-2511.19608736,0.00022406,2]
[312630827,1706122232872,-662.945,0.00022406,2]
[312630829,1706122232883,-1385.13891264,0.00022406,2]
[312630831,1706122232893,-183.89,0.00022466,2]
[312630833,1706122232902,-865.83,0.00022466,2]
[312630835,1706122232912,-835.08787544,0.000225,2]
[312630837,1706122232927,-183.89,0.00022526,2]
[312630839,1706122232936,-1739.42,0.00022566,2]
[312630840,1706122232945,-183.89,0.00022586,2]
[312630843,1706122232955,-183.89,0.00022646,2]
[312630845,1706122232964,-263.72875237,0.00022699,2]
[312630846,1706122232973,-150.0,0.00022699,2]
[312630848,1706122232982,-1570.14747643,0.000227,2]
[312630851,1706122232994,-2055.44954774,0.000227,2]
[312630853,1706122233005,-1153.450029,0.000227,2]
[312630855,1706122233015,-742.44,0.000227,2]
[312630856,1706122233034,-12664.61507924,0.000227,2]
[312630857,1706122233047,-8.81456759,0.000227,2]
[312630858,1706122233056,-500.0,0.000227,2]
[312630859,1706122233065,-1000.0,0.000227,2]
[312630860,1706122233073,-952.7005,0.000227,2]
[312630861,1706122233082,-4735.5545,0.000227,2]
[312630862,1706122233091,-2500.0,0.000227,2]
[312630863,1706122233100,-732.9304324,0.000227,2]
[312630864,1706122233111,-267.0695676,0.000227,2]
[312630865,1706122233120,-510.0822,0.000227,2]
[312630866,1706122233129,-183.89,0.00022706,2]
[312630867,1706122233138,-566.33226349,0.00022727,2]
[312630868,1706122233148,-183.89,0.00022766,2]
[312630869,1706122233157,-354.19432242,0.00022797,2]
[312630870,1706122233395,-645.80567758,0.00022797,2]
[312630871,1706122233407,-346.71100604,0.00022798,2]
[312630872,1706122233425,-704.46551623,0.00022798,2]
[312630873,1706122233435,-117.47658115,0.00022798,2]
[312630874,1706122233447,-113.25424143,0.00022798,2]
[312630875,1706122233456,-565.1304215,0.00022798,2]
[312630876,1706122233470,-477.00091621,0.00022798,2]
[312630877,1706122233481,-759.56227356,0.00022798,2]
[312630878,1706122233491,-371.50432901,0.00022798,2]
[312630879,1706122233503,-469.08257724,0.00022798,2]
[312630880,1706122233513,-100.34990398,0.00022798,2]
[312630881,1706122233524,-1381.7786119,0.00022798,2]
[312630882,1706122233541,-668.952,0.00022798,2]
[312630883,1706122233553,-422.93054561,0.00022798,2]
[312630884,1706122233937,-5378.12288603,0.00022798,2]
[312630885,1706122233949,-2668.0993855,0.00022798,2]
[312630886,1706122233959,-2242.25138576,0.00022798,2]
[312630887,1706122233970,-586.49834659,0.00022798,2]
[312630888,1706122233980,-229.13905361,0.00022798,2]
[312630889,1706122234002,-1843.27564963,0.00022798,2]
[312630890,1706122234010,-287.96041171,0.00022798,2]
[312630891,1706122234020,-2503.24693743,0.00022798,2]
[312630892,1706122234030,-1043.05160055,0.00022798,2]
[312630893,1706122234040,-405.9212378,0.00022798,2]
[312630894,1706122234049,-227.06032373,0.00022798,2]
[312630895,1706122234058,-560.52103711,0.00022798,2]
[312630896,1706122234069,-4629.94558808,0.00022799,2]
[312630897,1706122234078,-236.86348394,0.000228,2]
[312630898,1706122234918,-840.72075988,0.00042,120]
[312630899,1706122235223,-2000.0,0.0005,60]
[312630900,1706122235441,-215032.62538287,0.00051,120]
[312630901,1706122235466,-200.0,0.00051,33]
[312630902,1706122235489,-2000.0,0.00051,120]
[312630903,1706122235513,-600.0,0.00051,52]
[312630904,1706122235537,-500000.0,0.00051,120]
[312630905,1706122235560,-4000.0,0.00051,120]
[312630906,1706122235583,-202.0,0.00051,120]
[312630907,1706122235608,-452.49609033,0.00051,60]
[312630908,1706122235631,-150.15277208,0.00051,60]
[312630909,1706122235654,-1149.0,0.00051,60]
[312630910,1706122235676,-10000.0,0.00051,60]
[312630911,1706122235700,-10000.0,0.00051,60]
[312630912,1706122235723,-10000.0,0.00051,60]
[312630913,1706122235746,-19248.0,0.00051,60]
[312630914,1706122235768,-5093.0,0.00051,60]
[312630915,1706122235791,-625.59429668,0.00051,60]
[312630916,1706122235814,-656.63812099,0.00051,60]
[312630917,1706122235838,-432.40353136,0.00051028,60]
[312630918,1706122235862,-452.49609033,0.00051079,60]
[312630919,1706122235886,-155.25098285,0.00051085,60]
[312630920,1706122235910,-584.90819405,0.00051087,60]
[312630921,1706122235933,-176.58520058,0.00051088,60]
[312630922,1706122235955,-176.58520058,0.00051095,60]
[312630923,1706122235980,-638.07,0.00051095,120]
[312630924,1706122236004,-150.26769463,0.00051113,60]
[312630925,1706122236026,-158.39181887,0.0005113,60]
[312630926,1706122236049,-153.22894188,0.00051137,60]
[312630927,1706122236072,-176.55973396,0.00051138,60]
[312630928,1706122236096,-153.22894188,0.00051156,60]
[312630929,1706122236123,-155.25098285,0.00051176,60]
[312630930,1706122236387,-153.22894188,0.00051189,60]